bitfinex-derivatives/quotes_ETHF0:USTF0_20260119
["timestamp","ask_amount","ask_price","bid_price","bid_amount"]
[1768781617445,0.15432,3241.0,3240.5,1.9e-07]
[1768781617850,0.15433,3240.8,3239.7,1.43489249]
[1768781618863,0.15433,3240.8,3239.7,1.43861103]
[1768781619059,0.15435,3240.5,3239.7,1.43861103]
[1768781619362,0.15438,3239.8,3239.7,7.22e-06]
[1768781619545,0.15438,3239.8,3237.4,2.10676142]
[1768781619751,0.15438,3239.7,3237.4,0.160668]
[1768781619959,0.00308584,3240.5,3237.4,0.160668]
[1768781620150,3.087,3240.3,3237.4,0.160668]
[1768781620351,0.1544,3239.5,3237.4,0.160668]
[1768781620565,0.1544,3239.5,3238.5,0.00462684]
[1768781621570,3.09008584,3240.5,3238.5,1.24743317]
[1768781621571,0.15436,3240.2,3238.5,1.24743317]
[1768781621862,0.00462684,3239.3,3238.5,1.24743317]
[1768781623650,0.15902684,3239.3,3238.5,1.24743317]
[1768781623857,0.15441,3239.2,3238.5,0.00462684]
[1768781624058,0.00462684,3239.3,3238.5,1.24743317]
[1768781624264,0.15438,3239.8,3238.5,1.24743317]
[1768781624555,0.15743584,3240.5,3238.5,1.24743317]
[1768781624756,0.15435,3240.4,3238.5,1.24743317]
[1768781625360,0.15436,3240.3,3238.5,1.24743317]
[1768781625560,0.00462684,3239.8,3238.5,1.24743317]
[1768781625959,0.00308584,3240.5,3238.5,1.24743317]
[1768781626165,0.00308584,3240.5,3239.1,1.24280633]
[1768781627164,0.00462684,3240.1,3239.1,1.24280633]
[1768781628267,0.15899684,3240.1,3239.1,1.24280633]
[1768781628762,0.15438,3239.8,3239.1,1.24280633]
[1768781630366,0.00462684,3240.1,3239.1,1.24280633]
[1768781630866,0.00308584,3240.5,3239.1,1.24280633]
[1768781631954,0.00462684,3240.1,3239.1,1.24280633]
[1768781632161,0.15899684,3240.1,3239.1,1.24280633]
[1768781634165,0.00462684,3240.1,3239.1,1.24280633]
[1768781634366,0.15438,3239.8,3239.1,1.24280633]
[1768781635362,0.15439,3239.6,3239.1,1.24280633]
[1768781635562,0.00462684,3240.1,3238.5,0.00462684]
[1768781635563,0.1544,3239.5,3238.5,0.00462684]
[1768781636975,0.00462684,3240.1,3237.4,0.00909859]
[1768781636976,0.00037316,3238.3,3237.4,0.00909859]
[1768781637768,0.00037316,3238.3,3237.5,1.00648749]
[1768781638171,0.00037316,3238.3,3237.6,0.00462684]
[1768781639073,0.15482316,3238.3,3237.6,0.00462684]
[1768781639468,0.15482316,3238.3,3237.4,0.00909859]
[1768781639469,0.005,3238.3,3237.4,0.00909859]
[1768781639668,0.15448,3237.8,3237.4,0.00909859]
[1768781639966,0.15448,3237.8,3236.9,1.00648749]
[1768781640269,0.005,3238.3,3236.9,1.00648749]
[1768781640662,0.005,3238.3,3237.3,0.00462684]
[1768781640972,0.005,3238.3,3236.2,1.00648749]
[1768781640973,0.00887974,3238.3,3236.2,1.00648749]
[1768781641360,0.00887974,3238.3,3236.3,0.15455]
[1768781641565,0.00887974,3238.3,3236.4,1.00648749]
[1768781641867,0.16332974,3238.3,3236.4,1.00868814]
[1768781642066,0.16332974,3238.3,3237.1,1.00648749]
[1768781642568,0.00887974,3238.3,3237.1,1.00648749]
[1768781642765,0.15447,3237.9,3237.0,0.00462684]
[1768781642965,0.15448,3237.8,3237.0,0.00462684]
[1768781644272,0.15448,3237.8,3237.0,1.01111433]
[1768781644474,0.00887974,3238.3,3237.0,1.01111433]
[1768781644876,0.16333974,3238.3,3237.0,1.01111433]
[1768781645768,0.15446,3238.2,3237.0,1.01111433]
[1768781646674,0.00887974,3238.3,3237.0,1.01111433]
[1768781647372,0.15447,3238.0,3237.0,0.00462684]
[1768781647686,0.15448,3237.7,3237.0,0.00462684]
[1768781647976,0.15448,3237.7,3235.6,0.94924847]
[1768781647977,3.087,3237.5,3235.6,0.94924847]
[1768781648277,0.15454,3236.5,3235.6,0.94924847]
[1768781648471,3.087,3237.3,3235.6,0.94924847]
[1768781648677,0.15453,3236.7,3235.6,0.94924847]
[1768781648971,0.00463442,3236.5,3235.6,0.15191095]
[1768781649177,0.00463442,3236.5,3233.4,2.477186]
[1768781649178,0.15457,3235.9,3233.4,0.006186]
[1768781649872,0.15457,3235.9,3233.5,1.00648749]
[1768781650080,0.00362947,3235.9,3233.5,1.00990344]
[1768781651071,0.15457,3235.8,3233.5,1.00990344]
[1768781651678,0.00362947,3235.9,3233.5,1.00990344]
[1768781652181,0.15461,3235.0,3233.5,1.00990344]
[1768781652678,0.15926442,3234.6,3233.5,1.00990344]
[1768781652874,0.15463,3234.5,3233.5,0.00341595]
[1768781653666,0.24922636,3234.5,3230.9,1.00648749]
[1768781653871,0.47769802,3234.1,3230.9,1.00648749]
[1768781654174,0.00463442,3233.0,3230.9,1.00648749]
[1768781654569,0.15933442,3233.0,3230.9,1.00648749]
[1768781654772,0.47769802,3232.9,3230.9,0.00397154]
[1768781655073,0.15477,3231.6,3229.5,1.00648749]
[1768781655470,0.00464165,3230.9,3229.5,1.00648749]
[1768781655666,0.00464165,3230.9,3228.1,1.00648749]
[1768781655866,0.46086916,3230.8,3227.5,2.42131004]
[1768781656176,0.00464165,3230.9,3228.0,1.00648749]
[1768781656577,0.00464165,3230.9,3228.2,1.00648749]
[1768781656877,0.45043236,3230.9,3227.5,1.41801607]
[1768781657074,0.15485,3229.9,3227.5,1.41801607]
[1768781657272,1.13719315,3229.8,3227.5,1.41801607]
[1768781657476,1.13720315,3229.7,3227.5,1.41801607]
[1768781657668,0.98233315,3229.5,3227.5,1.41801607]
[1768781657875,0.00464165,3229.0,3227.5,1.41801607]
[1768781658082,0.9869748,3229.0,3227.5,1.10689607]
[1768781658280,6.9869748,3229.0,3224.8,2.474]
[1768781658582,0.00464165,3229.0,3224.8,2.474]
[1768781658780,0.15494,3228.1,3224.8,2.474]
[1768781659077,0.63598402,3229.0,3225.5,1.00648749]
[1768781659271,0.00464165,3227.1,3225.5,0.00380494]
[1768781659479,0.15501,3226.7,3225.5,0.00380494]
[1768781659976,0.00785787,3227.1,3225.5,0.00380494]
[1768781660171,0.00785787,3227.1,3225.5,1.01029243]
[1768781660679,0.00785787,3227.1,3225.5,0.00380494]
[1768781661177,0.155,3226.9,3225.5,0.00380494]
[1768781661382,0.59025325,3227.1,3222.2,1.00648749]
[1768781661577,0.5856116,3227.1,3222.7,1.00648749]
[1768781661770,0.58239538,3226.5,3222.7,1.00648749]
[1768781661982,0.00464929,3225.0,3222.7,1.00648749]
[1768781662285,0.15504,3226.0,3223.2,1.00648749]
[1768781662485,0.59752576,3226.9,3223.8,0.75608336]
[1768781662979,0.15505,3225.8,3223.8,0.75608336]
[1768781663172,0.58355838,3226.7,3223.8,0.75608336]
[1768781663375,0.15505,3225.8,3224.5,0.00464929]
[1768781663675,0.00321622,3227.1,3224.5,0.76073265]
[1768781664078,0.00321622,3227.1,3224.6,0.00666222]
[1768781664279,0.00321622,3227.1,3225.1,0.75608336]
[1768781664486,0.00321622,3227.1,3225.3,0.75608336]
[1768781664686,0.15495,3228.0,3226.1,0.75608336]
[1768781665088,0.15499,3227.1,3226.1,0.75608336]
[1768781665283,0.15499,3227.0,3224.7,2.478]
[1768781665485,0.15494,3228.1,3224.8,2.478]
[1768781665683,0.00464929,3226.8,3226.1,0.00464929]
[1768781665978,0.00230261,3228.1,3226.7,0.00666222]
[1768781666182,0.15497,3227.5,3226.1,0.00464929]
[1768781666381,0.15499,3227.0,3226.1,0.00464929]
[1768781666680,0.55874282,3227.4,3224.8,0.0036872]
[1768781666880,0.15508,3225.3,3224.8,7.2e-06]
[1768781667085,0.15508,3225.3,3222.8,2.478]
[1768781667284,0.15511,3224.5,3223.2,0.75608336]
[1768781667585,0.005,3225.9,3223.2,0.75608336]
[1768781667782,0.15974929,3224.9,3224.2,0.00464929]
[1768781667978,0.16273024,3224.9,3224.2,0.0071284]
[1768781668179,0.15505,3225.8,3224.4,0.75608336]
[1768781668380,0.15505,3225.7,3224.5,0.75608336]
[1768781668576,0.15507,3225.3,3224.5,0.75608336]
[1768781668776,0.15507,3225.3,3224.7,0.00666222]
[1768781668977,0.005,3225.9,3224.5,0.75608336]
[1768781668978,0.005,3225.9,3225.0,0.00666222]
[1768781669178,0.0086907,3225.9,3224.7,0.75608336]
[1768781669380,3.087,3227.5,3224.2,0.0071284]
[1768781669381,0.155,3227.0,3225.5,0.75608336]
[1768781669783,0.155,3227.0,3225.9,0.00666222]
[1768781669978,0.155,3226.8,3225.9,0.00666222]
[1768781670195,3.087,3228.2,3225.5,0.75608336]
[1768781670378,0.15498,3227.3,3225.5,0.75608336]
[1768781670583,0.00464929,3227.2,3226.5,0.00464929]
[1768781670781,0.155,3226.8,3226.5,6.1e-07]
[1768781670982,3.087,3226.9,3222.4,2.479]
[1768781671181,0.1551,3224.8,3222.4,2.479]
[1768781671388,0.1551,3224.8,3219.6,17.356]
[1768781671389,0.15515,3223.8,3221.6,3.35341493]
[1768781671585,0.15515,3223.8,3221.7,2.479]
[1768781671787,0.78236733,3225.8,3222.4,0.00464929]
[1768781672086,0.1551,3224.7,3222.5,2.479]
[1768781672801,0.78592517,3225.8,3222.4,0.00268984]
[1768781672802,0.78236733,3224.3,3222.4,0.00268984]
[1768781672978,0.78236733,3225.0,3222.4,0.7587732]
[1768781673285,0.15508,3225.1,3223.4,0.76073265]
[1768781673491,0.15508,3225.1,3223.6,0.75608336]
[1768781673893,0.15509,3224.9,3223.4,0.00464929]
[1768781674086,0.15509,3224.9,3223.5,2.48]
[1768781674288,0.15509,3224.9,3223.6,0.75608336]
[1768781674992,0.00355784,3225.8,3223.8,0.75608336]
[1768781675288,0.00355784,3225.8,3223.6,2.48]
[1768781675483,0.15512,3224.4,3223.4,0.00464929]
[1768781675883,0.78592517,3225.8,3223.5,2.48]
[1768781675884,0.00303229,3224.2,3223.5,2.48]
[1768781676088,0.78592517,3225.8,3223.4,0.00464929]
[1768781676282,0.78592517,3225.8,3223.4,9.29e-06]
[1768781676283,3.86936733,3225.2,3223.4,9.29e-06]
[1768781676483,0.15515,3223.7,3223.4,9.29e-06]
[1768781676689,0.15515,3223.7,3222.1,2.48]
[1768781677083,0.15515,3223.7,3222.3,0.75608336]
[1768781677285,0.00355784,3225.8,3215.2,5.48445878]
[1768781677286,0.15523,3222.1,3220.7,0.75608336]
[1768781677487,0.15522,3222.3,3220.7,0.75608336]
[1768781677712,0.15522,3222.2,3220.7,0.75608336]
[1768781677990,0.15518,3223.1,3221.2,0.62148797]
[1768781678397,0.15822325,3223.1,3221.6,0.00890106]
[1768781678595,0.15518,3223.0,3221.3,0.62573974]
[1768781678790,0.15518,3223.0,3221.6,0.00890106]
[1768781678990,0.15518,3223.0,3221.8,0.00464929]
[1768781679491,0.15522,3222.2,3221.2,0.00355317]
[1768781679895,0.00304325,3223.1,3221.2,0.62039185]
[1768781680191,0.15529,3220.9,3219.3,0.61683868]
[1768781680492,0.15529,3220.9,3219.4,2.481]
[1768781680691,0.15529,3220.9,3219.9,0.0046581]
[1768781681089,0.15529,3220.9,3219.3,0.61683868]
[1768781681282,0.15529,3220.9,3219.3,4.54228874]
[1768781681481,3.087,3222.8,3219.3,0.61683868]
[1768781681686,0.00304325,3223.1,3219.4,2.481]
[1768781681993,0.00304325,3223.1,3219.3,0.61683868]
[1768781682199,0.15523,3222.1,3220.9,0.0046581]
[1768781682401,0.00304325,3223.1,3221.4,3.92545006]
[1768781682692,0.1552,3222.8,3221.4,2.482]
[1768781682884,0.00304325,3223.1,3221.7,3.92545006]
[1768781683087,0.00304325,3223.1,3221.8,3.92545006]
[1768781683292,0.00304325,3223.1,3222.0,3.92545006]
[1768781683511,0.15515,3223.7,3221.8,0.61683868]
[1768781683796,1.04185969,3226.6,3221.7,0.00321181]
[1768781683797,0.67089568,3224.9,3221.7,0.00321181]
[1768781683988,0.67089568,3224.6,3221.7,0.00321181]
[1768781684189,1.95250532,3225.0,3221.7,0.00321181]
[1768781684190,0.15521,3222.5,3221.7,0.00321181]
[1768781684496,0.00379363,3222.5,3221.7,0.00321181]
[1768781684683,0.00379363,3222.5,3222.3,3.92545006]
[1768781684889,0.15517,3223.3,3221.8,0.0046581]
[1768781685084,0.67089568,3224.1,3222.1,3.92545006]
[1768781685291,0.15514,3223.9,3221.9,3.92545006]
[1768781685493,0.15518,3223.2,3221.8,0.0046581]
[1768781685997,0.15519,3223.0,3221.8,0.0046581]
[1768781686386,0.15519,3222.9,3221.8,0.0046581]
[1768781686587,0.15519,3222.8,3221.8,0.0046581]
[1768781686999,0.15519,3222.8,3222.2,3.92545006]
[1768781687392,0.00265808,3223.2,3222.5,3.92545006]
[1768781687595,0.00265808,3223.2,3222.1,3.92545006]
[1768781688093,0.00265808,3223.2,3221.9,2.483]
[1768781688296,0.00265808,3223.2,3222.3,3.92545006]
[1768781688498,0.00265808,3223.2,3222.4,3.92545006]
[1768781688697,0.15517,3223.4,3221.9,3.09983868]
[1768781688996,2.64404799,3223.3,3221.8,0.0046581]
[1768781689199,0.15522,3222.4,3221.8,0.0046581]
[1768781689500,0.15521,3222.6,3221.9,3.92545006]
[1768781689697,0.15829293,3222.6,3221.8,0.0046581]
[1768781689995,0.15829293,3222.6,3222.1,3.92545006]
[1768781690201,0.15829293,3222.6,3221.9,3.92545006]
[1768781690404,0.15829293,3222.6,3222.0,2.483]
[1768781690904,0.67089568,3223.7,3222.2,3.92545006]
[1768781691097,0.15517,3223.3,3222.0,2.483]
[1768781691296,0.67089568,3223.7,3222.0,2.483]
[1768781691907,0.67426747,3223.7,3222.0,2.483]
[1768781692098,0.67426747,3223.7,3222.0,2.16716]
[1768781692299,0.15521,3222.5,3222.0,2.16716]
[1768781692789,0.15521,3222.5,3222.1,3.92545006]
[1768781692994,0.67426747,3223.7,3222.1,3.92545006]
[1768781693190,0.55055623,3223.6,3222.0,2.16716]
[1768781693797,0.15521,3222.4,3222.0,2.16716]
[1768781694100,0.15521,3222.4,3222.0,0.16716]
[1768781694304,0.55055623,3223.6,3222.1,3.92545006]
[1768781694502,0.55055623,3223.6,3222.0,0.16716]
[1768781694693,0.1552,3222.7,3222.0,0.16716]
[1768781695094,0.55055623,3223.4,3222.0,0.16716]
[1768781695294,0.00337179,3223.7,3222.0,0.16716]
[1768781695505,0.55055623,3223.5,3221.8,0.0046581]
[1768781695802,0.1552,3222.8,3221.8,0.0046581]
[1768781696003,0.1552,3222.7,3221.8,0.0046581]
[1768781696206,3.9203419,3221.8,3221.7,0.00321181]
[1768781696405,3.9203419,3221.8,3220.4,0.57691231]
[1768781696605,3.09395278,3221.8,3221.2,3.92545006]
[1768781696900,3.09395278,3221.8,3221.2,6.40845006]
[1768781697101,0.15526,3221.5,3220.5,0.57691231]
[1768781697299,0.15526,3221.5,3220.5,0.57940771]
[1768781697603,0.0046581,3221.3,3221.1,3.92545006]
[1768781697807,0.00707084,3221.3,3220.7,0.0046581]
[1768781698003,0.00707084,3221.3,3219.1,0.57691231]
[1768781698205,0.15531,3220.4,3219.4,3.92545006]
[1768781698407,0.15531,3220.4,3220.0,3.92545006]
[1768781698606,0.15531,3220.4,3219.9,3.92545006]
[1768781698907,0.15531,3220.4,3219.8,3.92545006]
[1768781699108,0.15531,3220.4,3219.8,0.00333171]
[1768781699308,0.15533,3219.9,3218.4,0.57691231]
[1768781699502,0.15533,3219.9,3219.1,2.483]
[1768781699695,0.15533,3219.9,3218.4,4.50236237]
[1768781699696,3.63755623,3220.6,3217.5,0.57691231]
[1768781700008,3.63755623,3220.6,3217.7,0.57691231]
[1768781700216,0.55055623,3220.3,3217.7,0.57908954]
[1768781700402,0.24772897,3221.1,3218.8,0.0046581]
[1768781700403,0.15536,3219.4,3218.8,0.0046581]
[1768781700594,0.15532,3220.2,3218.8,0.0046581]
[1768781700802,0.55055623,3218.9,3217.7,0.00217723]
[1768781701102,0.15547,3217.1,3211.6,2.484]
[1768781701298,0.15556,3215.3,3213.5,0.57691231]
[1768781701506,0.15557,3215.0,3213.5,0.57691231]
[1768781701912,0.00390764,3215.0,3213.5,0.58029338]
[1768781702109,0.15947764,3215.0,3213.9,3.93385139]
[1768781702310,0.00217109,3214.6,3214.0,3.93385139]
[1768781702514,0.15947764,3215.0,3214.0,3.93385139]
[1768781702715,0.15947764,3215.0,3214.1,3.93385139]
[1768781702904,0.15947764,3215.0,3213.5,0.00338107]
[1768781703414,0.00390764,3215.0,3211.6,0.15573]
[1768781703613,0.53476428,3215.0,3211.5,2.485]
[1768781703812,0.53476428,3215.0,3209.4,0.006232]
[1768781703813,0.15562,3214.1,3210.4,0.15579]
[1768781704112,0.52136079,3214.3,3209.8,1.97315231]
[1768781704311,0.00256713,3215.0,3211.0,0.57691231]
[1768781704312,0.15559,3214.6,3211.0,0.57691231]
[1768781704516,0.15559,3214.6,3210.5,2.485]
[1768781704517,0.1556,3214.3,3211.4,0.57691231]
[1768781704712,0.52392792,3215.0,3210.3,0.1558]
[1768781704916,1.97315231,3214.5,3210.9,0.01957086]
[1768781705116,1.97315231,3213.8,3210.9,0.01957086]
[1768781705420,0.1557,3212.4,3210.9,0.01957086]
[1768781705622,0.00284567,3212.4,3210.9,0.01957086]
[1768781706017,0.15562,3213.9,3211.0,2.486]
[1768781706219,2.73423673,3216.5,3211.1,0.15576]
[1768781706220,1.97315231,3216.3,3211.1,0.15576]
[1768781706519,0.15551,3216.2,3212.8,1.97315231]
[1768781706717,1.97315231,3216.3,3212.9,0.57691231]
[1768781706915,0.15555,3215.4,3212.0,0.15572]
[1768781707116,0.48777104,3216.3,3212.0,0.6335612]
[1768781707117,0.15559,3214.6,3212.0,0.6335612]
[1768781707313,0.15559,3214.6,3212.1,0.57691231]
[1768781707513,0.15554,3215.7,3212.8,0.57691231]
[1768781707726,1.97315231,3215.7,3213.1,0.57691231]
[1768781708222,0.15563,3213.8,3212.3,0.57691231]
[1768781708406,0.15563,3213.8,3206.7,5.57066982]
[1768781708407,0.15566,3213.1,3211.4,0.57691231]
[1768781708611,0.00279795,3213.8,3211.4,0.57691231]
[1768781708906,0.1557,3212.3,3210.7,0.57691231]
[1768781709112,0.47385015,3213.2,3210.0,0.57691231]
[1768781709309,2.12885231,3212.3,3210.9,8.6e-07]
[1768781709520,0.47384366,3212.9,3210.9,8.6e-07]
[1768781709717,0.00466649,3211.9,3210.0,0.57691231]
[1768781710020,0.00466649,3211.9,3210.8,3.93385139]
[1768781710322,0.15574,3211.5,3209.4,0.58314431]
[1768781710509,0.15574,3211.5,3209.7,0.57691231]
[1768781710822,0.00466649,3211.9,3210.4,0.57691231]
[1768781711320,0.00466649,3211.9,3210.3,0.00466649]
[1768781711512,0.00466649,3211.9,3210.3,0.5815788]
[1768781711708,3.087,3213.5,3210.3,0.5815788]
[1768781711709,0.15568,3212.7,3211.0,3.93385139]
[1768781711909,0.15569,3212.6,3210.6,0.57691231]
[1768781712119,0.15569,3212.6,3211.1,3.93385139]
[1768781712312,0.00265809,3212.7,3210.6,0.57691231]
[1768781712513,0.00265809,3212.7,3209.9,0.57691231]
[1768781713014,0.00265809,3212.7,3211.0,6.49e-06]
[1768781713215,0.00265809,3212.7,3209.7,0.00340647]
[1768781713216,0.15578,3210.7,3209.7,0.00340647]
[1768781713621,0.00466649,3211.6,3210.6,3.93385139]
[1768781713818,0.47663305,3214.3,3211.0,0.57691231]
[1768781714016,1.97315231,3213.7,3211.0,0.57691231]
[1768781714215,1.97315231,3214.9,3211.1,0.57691231]
[1768781714417,0.46831182,3215.2,3211.1,0.57691231]
[1768781714418,0.15561,3214.2,3211.7,0.57691231]
[1768781714619,0.15562,3214.1,3212.2,0.57691231]
[1768781714823,0.15562,3214.1,3212.2,0.5792512]
[1768781714824,0.15562,3214.0,3212.2,0.5792512]
[1768781715022,0.15562,3214.0,3212.8,0.00466649]
[1768781715232,0.00309143,3214.1,3212.8,0.00466649]
[1768781715420,0.00466649,3213.4,3212.8,6.49e-06]
[1768781715626,0.15871143,3214.1,3212.8,6.49e-06]
[1768781715925,0.15871143,3214.1,3213.3,3.93385139]
[1768781716128,0.15558,3214.8,3213.7,3.93385139]
[1768781716330,0.15553,3215.8,3214.0,0.57691231]
[1768781716828,0.00466649,3215.2,3214.6,0.00466649]
[1768781717136,1.97315231,3217.0,3214.6,0.00369272]
[1768781717432,1.97315231,3217.1,3214.6,0.00369272]
[1768781717628,1.97315231,3215.7,3213.4,0.57691231]
[1768781717834,1.97315231,3215.7,3211.9,0.15572]
[1768781717835,0.45593395,3216.4,3212.0,0.57691231]
[1768781718020,1.97315231,3215.6,3212.9,0.57691231]
[1768781718222,1.97315231,3215.6,3211.2,3.58521991]
[1768781718223,0.45262178,3218.3,3214.5,0.57691231]
[1768781718529,0.45262178,3217.8,3213.0,3.35429736]
[1768781718730,0.15562,3214.1,3213.0,0.00401665]
[1768781719028,0.00374136,3214.1,3213.0,0.58092896]
[1768781719222,0.00374136,3214.1,3213.0,0.00401665]
[1768781719417,0.00374136,3214.1,3213.2,0.00466649]
[1768781719829,0.16029649,3213.9,3213.2,0.00466649]
[1768781720129,0.16029649,3213.9,3213.4,3.12735139]
[1768781720130,0.15563,3213.7,3213.4,3.12735139]
[1768781720428,0.15559,3214.7,3214.0,3.11894354]
[1768781720630,2.49,3217.7,3213.0,0.00401665]
[1768781720631,0.15558,3214.8,3213.3,0.57691231]
[1768781720826,1.97315231,3215.1,3213.0,0.00401665]
[1768781721134,0.15564,3213.5,3213.0,0.00401665]
[1768781721426,1.97315231,3215.9,3213.1,0.57691231]
[1768781721628,0.55055623,3216.3,3213.4,0.57691231]
[1768781721827,0.55055623,3216.3,3213.8,3.38086659]
[1768781722126,0.55055623,3216.2,3213.1,0.57691231]
[1768781722326,0.55055623,3216.2,3213.0,0.00401665]
[1768781722327,0.15562,3214.1,3213.0,0.00401665]
[1768781722528,0.0040282,3214.1,3213.0,6.65e-06]
[1768781722731,0.0040282,3214.1,3209.6,1.44312482]
[1768781722732,0.42744197,3214.1,3211.0,0.44313525]
[1768781722924,1.97315231,3213.5,3211.0,0.44313525]
[1768781723119,0.0040282,3214.1,3211.0,0.44313525]
[1768781723120,0.42341377,3213.7,3211.0,0.44313525]
[1768781723630,0.42341377,3213.0,3210.2,0.44313525]
[1768781723831,0.443,3210.8,3210.2,0.44706691]
[1768781724025,0.42341377,3213.0,3210.2,0.00393166]
[1768781724228,0.15574,3211.6,3211.3,6.49e-06]
[1768781724628,0.42341377,3212.8,3210.2,0.00393166]
[1768781724927,0.15904964,3212.8,3210.2,0.44706691]
[1768781725121,0.00336964,3212.8,3210.2,0.44706691]
[1768781725321,0.15576,3211.2,3210.2,0.00393166]
[1768781725528,0.15576,3211.1,3210.2,0.00393166]
[1768781725731,0.00466649,3211.0,3210.4,0.00466649]
[1768781725928,0.00466649,3211.0,3210.9,1.02019249]
[1768781726135,0.00336964,3212.8,3211.5,0.86446249]
[1768781726327,0.42678341,3212.8,3210.4,0.00466649]
[1768781726530,0.00336964,3212.8,3210.5,0.44313525]
[1768781726833,0.00336964,3212.8,3210.7,0.44313525]
[1768781727231,0.15904964,3212.8,3210.7,0.44313525]
[1768781727438,0.15568,3212.7,3210.8,2.49]
[1768781727638,0.00336964,3212.8,3210.8,2.49]
[1768781727639,0.00336964,3212.8,3210.9,0.44313525]
[1768781727936,0.149431,3213.6,3211.1,0.44155548]
[1768781728135,0.42341377,3214.2,3211.1,0.44155548]
[1768781728335,0.15571,3212.1,3212.0,6.49e-06]
[1768781728535,0.42341377,3213.0,3210.2,0.00393166]
[1768781728723,0.15571,3212.1,3210.3,2.92614968]
[1768781728927,0.15567,3212.9,3210.4,0.43514968]
[1768781729126,0.42341377,3213.9,3210.5,0.26787267]
[1768781729330,0.15567,3212.9,3210.8,0.11220267]
[1768781729530,0.42341377,3213.9,3211.5,0.00466649]
[1768781729731,0.00466649,3212.2,3211.5,0.00466649]
[1768781729933,0.42341377,3213.9,3211.5,2.49566649]
[1768781730140,0.42341377,3213.9,3211.5,0.00466649]
[1768781730332,0.15568,3212.8,3211.5,0.00466649]
[1768781730643,0.42341377,3211.4,3210.2,0.00393166]
[1768781731026,0.00326162,3211.4,3210.2,0.00393166]
[1768781731831,0.42667539,3211.4,3210.5,0.00466649]
[1768781732031,0.57918377,3211.0,3210.5,0.00466649]
[1768781732228,0.00466649,3211.3,3210.2,0.00393166]
[1768781732834,0.57918377,3210.8,3209.6,1.44312482]
[1768781733035,0.00466649,3211.3,3209.6,1.44312482]
[1768781733233,0.42808026,3211.3,3210.1,0.00466649]
[1768781733434,0.00466649,3211.3,3210.1,0.00466649]
[1768781733830,0.00466649,3211.3,3210.1,0.00859166]
[1768781734031,0.58383026,3211.3,3210.1,0.00859166]
[1768781734231,0.42341377,3211.2,3210.1,0.00859166]
[1768781734427,0.57919377,3210.8,3210.1,0.00859166]
[1768781734630,0.15583,3209.7,3206.9,0.15596]
[1768781734831,0.15583,3209.7,3206.3,17.44]
[1768781734832,0.15581,3210.1,3207.3,1.59906482]
[1768781735028,0.42341377,3209.8,3207.8,1.44312482]
[1768781735242,0.42341377,3208.9,3206.4,0.15599]
[1768781735433,0.42341377,3207.8,3205.4,0.00624]
[1768781735626,3.41948079,3209.7,3205.5,2.353]
[1768781735627,0.42341377,3209.3,3205.5,2.353]
[1768781735940,0.42341377,3210.0,3206.9,0.15596]
[1768781736143,0.15575,3211.3,3207.5,0.15593]
[1768781736338,3.86008752,3212.5,3207.0,8.11177685]
[1768781736545,0.15573,3211.8,3208.5,0.15588]
[1768781736839,0.00346665,3212.5,3210.3,1.97315231]
[1768781737036,0.15561,3214.2,3211.1,1.97315231]
[1768781737242,1.55293059,3215.5,3211.6,1.97315231]
[1768781737243,0.77308752,3215.4,3211.6,1.97315231]
[1768781737550,0.77308752,3215.1,3210.5,1.97315231]
[1768781737836,0.00467399,3213.0,3211.6,1.97315231]
[1768781738042,0.36671131,3214.9,3212.8,0.00467399]
[1768781738424,3.087,3214.4,3212.8,0.00467399]
[1768781738627,0.36671131,3213.8,3211.6,0.00228941]
[1768781738829,0.36671131,3215.2,3211.8,2.492]
[1768781739034,0.36671131,3215.1,3211.6,0.00228941]
[1768781739242,0.36671131,3215.1,3212.1,1.45954491]
[1768781739430,3.087,3214.6,3212.5,1.45954491]
[1768781739630,0.36671131,3213.7,3211.6,0.00228941]
[1768781739840,0.36671131,3213.7,3213.2,0.00467399]
[1768781740139,0.36671131,3213.7,3211.6,0.00228941]
[1768781740540,0.36671131,3213.7,3212.0,1.45954491]
[1768781740731,0.00467399,3213.9,3212.7,1.45954491]
[1768781740927,0.00467399,3213.9,3211.7,2.491]
[1768781740928,0.00467399,3213.9,3212.6,1.45954491]
[1768781741133,0.00467399,3213.9,3212.4,2.491]
[1768781741436,0.00467399,3213.9,3212.9,0.00467399]
[1768781741829,0.3713853,3213.9,3212.9,0.00467399]
[1768781742035,0.36671131,3213.6,3212.9,0.00467399]
[1768781742248,0.36671131,3213.6,3213.3,1.01970544]
[1768781742545,0.36671131,3214.4,3213.8,1.01503145]
[1768781742741,0.00369698,3215.2,3212.9,0.00467399]
[1768781742930,0.1555,3216.6,3213.1,2.25838276]
[1768781743135,1.97315231,3217.1,3213.7,0.64832014]
[1768781743438,0.15547,3217.2,3214.5,1.97315231]
[1768781743643,0.15547,3217.2,3215.1,0.00466664]
[1768781743844,1.44312482,3217.6,3215.2,2.491]
[1768781744038,1.44626675,3217.6,3215.7,0.64832014]
[1768781744239,1.43391775,3217.6,3215.2,2.49372139]
[1768781744441,0.15536,3219.3,3216.0,1.97315231]
[1768781744638,0.36671131,3219.2,3216.0,1.97315231]
[1768781744838,0.36671131,3219.2,3216.1,3.35129717]
[1768781745032,0.36671131,3218.3,3215.2,0.00272139]
[1768781745253,0.00466664,3217.9,3217.3,0.00466664]
[1768781745442,0.36671131,3220.3,3217.4,2.491]
[1768781745646,0.36671131,3220.3,3217.9,1.97315231]
[1768781745942,0.36671131,3220.9,3218.6,1.97315231]
[1768781746242,0.36671131,3220.6,3218.7,2.491]
[1768781746445,0.36671131,3222.2,3220.0,1.97315231]
[1768781746741,0.36671131,3222.2,3219.9,2.49]
[1768781746943,0.15517,3223.3,3220.3,1.97315231]
[1768781747143,0.36671131,3224.1,3221.1,1.97315231]
[1768781747453,0.36671131,3225.5,3222.3,1.97315231]
[1768781747752,0.00311778,3225.5,3223.0,1.97315231]
[1768781747953,0.00311778,3225.5,3223.7,1.97315231]
[1768781748136,0.36671131,3227.1,3223.8,0.064]
[1768781748341,0.36671131,3227.1,3223.9,4.46215231]
[1768781748540,0.36671131,3227.1,3223.9,1.97315231]
[1768781748837,0.36671131,3227.1,3192.3,44.5]
[1768781748838,0.36671131,3226.4,3224.0,3.23086146]
[1768781749038,0.36671131,3225.7,3222.6,2.489]
[1768781749242,0.36671131,3225.7,3220.3,2.21860745]
[1768781749243,0.36671131,3225.7,3221.8,2.346]
[1768781749442,0.36671131,3225.7,3222.7,2.489]
[1768781749637,0.36671131,3225.7,3222.7,3.37164814]
[1768781749841,0.36671131,3225.7,3222.3,0.15843881]
[1768781750039,0.00460913,3224.5,3223.9,0.00465115]
[1768781750234,0.36671131,3224.4,3222.4,2.488]